fUSD/lending_fUSD_20260201
["ID","MTS","AMOUNT","RATE_DAILY","PERIOD"]
[404185467,1769911845671,-1188.74,0.00017936,2]
[404185468,1769911845684,-155.0,0.00017936,2]
[404185469,1769911845694,-500.0,0.00017972,2]
[404185470,1769911845703,-500.0,0.00017973,2]
[404185471,1769911845713,-504.72917174,0.00017973,2]
[404185472,1769911845724,-500.0,0.00017973,2]
[404185473,1769911845733,-503.11294677,0.00017973,2]
[404185474,1769911845743,-500.0,0.00017973,2]
[404185475,1769911845752,-150.0,0.00017973,2]
[404185476,1769911845762,-150.0,0.00017973,2]
[404185477,1769911845771,-500.0,0.00017977,2]
[404185478,1769911845780,-313.9472948,0.00017977,2]
[404185479,1769911845790,-331.35903771,0.0001799,2]
[404185480,1769911845801,-331.35903771,0.0001799,2]
[404185481,1769911845810,-331.35903771,0.0001799,2]
[404185482,1769911845819,-300.0,0.00017996,2]
[404185483,1769911845828,-500.0,0.00017996,2]
[404185484,1769911845837,-500.0,0.00017996,2]
[404185485,1769911845847,-386.155583,0.00017996,2]
[404185486,1769911845857,-386.155583,0.00017996,2]
[404185487,1769911845866,-165.747014,0.00017996,2]
[404185488,1769911845875,-386.155583,0.00017996,2]
[404185489,1769911845889,-386.155583,0.00017996,2]
[404185490,1769911845900,-1137.6442666,0.00017997,2]
[404185491,1769911845910,-133687.41226086,0.00017997,2]
[404185493,1769911846070,-10041.06289624,0.00017997,2]
[404185494,1769911846079,-14366.6956145,0.00017997,2]
[404185495,1769911846088,-386.155583,0.00017997,2]
[404185497,1769911846098,-386.155583,0.00017997,2]
[404185498,1769911846107,-386.155583,0.00017997,2]
[404185499,1769911846116,-386.155579,0.00017997,2]
[404185500,1769911846126,-500.0,0.00017999,2]
[404185501,1769911846137,-303.96307466,0.00017999,2]
[404185502,1769911846147,-500.0,0.00017999,2]
[404185503,1769911846158,-561.20187849,0.00017999,2]
[404185504,1769911846167,-500.0,0.00017999,2]
[404185505,1769911846176,-500.0,0.00017999,2]
[404185506,1769911846186,-500.0,0.00017999,2]
[404185507,1769911846195,-500.0,0.00017999,2]
[404185508,1769911846204,-646.51420011,0.00017999,2]
[404185509,1769911846213,-2206.34598421,0.00018,2]
[404185510,1769911846224,-2740.36825324,0.00018,2]
[404185511,1769911846254,-385.47276,0.00015651,2]
[404185512,1769911846264,-1.01729528,0.00015851,2]
[404185514,1769911846276,-384.45546472,0.00015851,2]
[404185516,1769911846288,-385.47276,0.00016651,2]
[404185518,1769911846297,-449.55285978,0.00018,2]
[404185519,1769911846314,-385.47277,0.00016051,2]
[404185520,1769911846323,-99.23948904,0.00018,2]
[404185521,1769911846470,-385.47276,0.00016251,2]
[404185522,1769911846480,-172.48725026,0.00016451,2]
[404185523,1769911846492,-212.98551974,0.00016451,2]
[404185524,1769911846501,-4228.25407397,0.00018,2]
[404185525,1769911846512,-345.99860319,0.00018,2]
[404185526,1769911846523,-388848.5191726,0.00018,2]
[404185527,1769911846532,-104123.14823018,0.00018,2]
[404185528,1769911846546,-417.46659976,0.00018,2]
[404185529,1769911846557,-7278.78791481,0.00018,2]
[404185530,1769911846568,-6011.16168207,0.00018,2]
[404185531,1769911846580,-2103.8226,0.00018,2]
[404185532,1769911846591,-1821.82014999,0.00018,2]
[404185533,1769911846611,-831.22502315,0.00018,2]
[404185534,1769911846624,-2511.8867267,0.00018,2]
[404185535,1769911846635,-8311.58512398,0.00018,2]
[404185536,1769911846646,-1194.07324371,0.00018,2]
[404185537,1769911846666,-286722.89465549,0.00018,2]
[404185538,1769911846677,-581.67734602,0.00018,2]
[404185539,1769911846689,-2929.86186262,0.00018,2]
[404185540,1769911846702,-1587.635991,0.00018,2]
[404185541,1769911846715,-4060.55,0.00018,2]
[404185542,1769911846732,-1648.25,0.00018,2]
[404185543,1769911846743,-18959.30379703,0.00018,2]
[404185545,1769911846754,-404.73403491,0.00018,2]
[404185547,1769911846766,-2186.39951613,0.00018,2]
[404185549,1769911846780,-521.50544742,0.00018,2]
[404185551,1769911846793,-331973.29470489,0.00018,2]
[404185554,1769911846809,-3554.57757357,0.00018,2]
[404185556,1769911846820,-579.67372848,0.00018,2]
[404185567,1769911907899,1700.0,0.000147,5]
[404185568,1769911910096,3500.0,0.000148,5]
[404185569,1769911912356,5300.0,0.000149,5]
[404185570,1769911932174,500.0,0.00043538,30]
[404185575,1769912167100,508.92523375,0.00043538,30]
[404185576,1769912169102,1418.18365959,0.00043538,30]
[404185577,1769912169394,151.0,0.00043538,30]
[404185578,1769912170034,151.0,0.00043538,30]
[404185579,1769912170162,578.20924308,0.00043538,30]
[404185580,1769912173227,322.6107,0.00043538,30]
[404185581,1769912225138,525.06041542,0.00043538,30]
[404185582,1769912225429,500.0,0.00043538,30]
[404185583,1769912226032,500.0,0.00043538,30]
[404185584,1769912226659,500.0,0.00043538,30]
[404185585,1769912227286,500.0,0.00043538,30]
[404185586,1769912228015,520.0,0.00043538,30]
[404185587,1769912235532,500.0,0.00043538,30]
[404185588,1769912236123,500.0,0.00043538,30]
[404185589,1769912236191,3000.0,0.00043538,30]
[404185590,1769912236522,501.00143335,0.00043538,30]
[404185591,1769912236734,500.0,0.00043538,30]
[404185592,1769912237350,500.0,0.00043538,30]
[404185593,1769912286162,201.12765535,0.00043538,30]
[404185594,1769912291341,261.22937952,0.00043538,30]
[404185595,1769912325515,1512.0,0.00043538,30]
[404185596,1769912410693,3000.0,0.00043528,30]
[404185597,1769912411324,3000.0,0.00043528,30]
[404185598,1769912411385,1000.0,0.00043528,30]
[404185599,1769912411992,3000.0,0.00043528,30]
[404185601,1769912412329,854.2589148,0.00043528,30]
[404185602,1769912412681,3000.0,0.00043528,30]
[404185603,1769912414328,1000.0,0.00043528,30]
[404185604,1769912414956,1000.0,0.00043528,30]
[404185605,1769912423542,1000.0,0.00043528,30]
[404185606,1769912424205,1243.53300971,0.00043528,30]
[404185607,1769912424268,1000.0,0.00043528,30]
[404185608,1769912424811,1000.0,0.00043528,30]
[404185609,1769912425574,1000.0,0.00043528,30]
[404185610,1769912426029,1000.0,0.00043528,30]
[404185611,1769912465488,750.0,0.00043528,30]
[404185612,1769912465553,334.5472959,0.00043528,30]
[404185613,1769912471630,228.31848431,0.00043528,30]
[404185614,1769912473788,500.0,0.00043528,30]
[404185615,1769912474736,527.03101107,0.00043528,30]
[404185616,1769912530108,885.86649465,0.00043528,30]
[404185617,1769912644450,-194.4,0.000144,2]
[404185618,1769912644472,-250.0,0.00014431,2]
[404185619,1769912644495,-196.0,0.00014461,2]
[404185620,1769912644517,-300.0,0.00014461,2]
[404185621,1769912644543,-1200.0,0.00014461,2]
[404185622,1769912644565,-229.0,0.00014462,2]
[404185623,1769912644588,-300.0,0.00014462,2]
[404185624,1769912644610,-300.0,0.00014462,2]
[404185625,1769912644634,-626.5265472,0.00014463,2]
[404185626,1769912644659,-16739.61544737,0.00014463,2]
[404185627,1769912644682,-2096.89,0.0001449,2]
[404185628,1769912644706,-169.564,0.0001449,2]
[404185629,1769912644728,-2930.60841593,0.00014553,2]
[404185630,1769912644751,-151.74461251,0.00014554,2]
[404185631,1769912644773,-150.0,0.00014561,2]
[404185632,1769912644798,-238.08923723,0.00014562,2]
[404185633,1769912644820,-451.88849454,0.00014562,2]
[404185634,1769912644843,-500.0,0.00014562,2]
[404185635,1769912644865,-500.0,0.00014562,2]
[404185636,1769912644888,-500.0,0.00014562,2]
[404185637,1769912644911,-500.0,0.00014562,2]
[404185638,1769912644934,-500.0,0.00014562,2]
[404185639,1769912644961,-517.19350435,0.00014562,2]
[404185640,1769912644985,-500.0,0.00014562,2]
[404185641,1769912645007,-500.0,0.00014562,2]
[404185642,1769912645030,-500.0,0.00014562,2]
[404185643,1769912645053,-500.0,0.00014562,2]
[404185644,1769912645076,-339.74641434,0.00014562,2]
[404185645,1769912645099,-449.32901066,0.00014562,2]
[404185646,1769912645121,-511.25818164,0.00014562,2]
[404185647,1769912645149,-500.0,0.00014562,2]
[404185648,1769912645172,-630.06566191,0.00014562,2]
[404185649,1769912645199,-489.57142276,0.00014562,2]
[404185650,1769912645220,-670.5922888,0.00014562,2]
[404185651,1769912645242,-683.7,0.00014563,2]
[404185652,1769912645264,-500.0,0.00014662,2]
[404185653,1769912645287,-500.0,0.00014662,2]
[404185654,1769912645308,-500.0,0.00014662,2]
[404185655,1769912645330,-500.0,0.00014662,2]
[404185656,1769912645353,-240.29,0.00014683,2]
[404185657,1769912645377,-1011.26,0.00014696,2]
[404185658,1769912645400,-200.0,0.00014743,2]
[404185659,1769912645425,-16739.6154473,0.00014845,2]
[404185660,1769912645447,-3804.08954478,0.00014989,2]
[404185661,1769912645471,-1000.0,0.00015113,2]
[404185662,1769912645493,-16739.6154473,0.00015227,2]
[404185663,1769912645516,-166.66,0.00015378,2]
[404185664,1769912645540,-16739.6154473,0.00015609,2]
[404185665,1769912645564,-255.0,0.00015682,2]
[404185666,1769912645586,-166.66,0.00015702,2]
[404185667,1769912645607,-1048.20156498,0.00015709,2]
[404185668,1769912645630,-420.0,0.00015837,2]
[404185669,1769912645652,-420.0,0.00015837,2]
[404185670,1769912645684,-240.38026211,0.0001584,2]
[404185671,1769912645707,-250.0,0.0001584,2]
[404185672,1769912645730,-195.0,0.0001584,2]
[404185673,1769912645754,-300.0,0.0001584,2]
[404185674,1769912645778,-2605.28779567,0.0001584,2]
[404185675,1769912645802,-600.0,0.0001584,2]
[404185676,1769912645824,-250.0,0.0001584,2]
[404185677,1769912645846,-1680.0,0.00015907,2]
[404185678,1769912645868,-16739.6154473,0.00015991,2]
[404185679,1769912645892,-166.66,0.00016025,2]
[404185680,1769912645916,-3233.0,0.00016033,2]
[404185681,1769912645940,-1138.51703492,0.00016056,2]
[404185682,1769912645967,-462.19539941,0.00016167,2]
[404185683,1769912645993,-1219.74097169,0.00016167,2]
[404185684,1769912646020,-777.53,0.00016187,2]
[404185685,1769912646043,-197.34,0.00016198,2]
[404185686,1769912646064,-500.0,0.00016274,2]
[404185687,1769912646092,-166.66,0.00016349,2]
[404185688,1769912646116,-16739.6154473,0.00016372,2]
[404185689,1769912646139,-500.0,0.00016373,2]
[404185690,1769912646164,-500.0,0.00016373,2]
[404185691,1769912646187,-500.0,0.00016373,2]
[404185692,1769912646218,-500.0,0.00016373,2]
[404185693,1769912646242,-500.0,0.00016373,2]
[404185694,1769912646272,-500.0,0.00016373,2]
[404185695,1769912646301,-500.0,0.00016373,2]
[404185696,1769912646330,-500.0,0.00016373,2]
[404185697,1769912646356,-502.10787184,0.00016373,2]
[404185698,1769912646380,-838.0,0.000164,2]
[404185699,1769912646406,-500.0,0.00016438,2]
[404185700,1769912646433,-500.0,0.00016438,2]
[404185701,1769912646462,-500.0,0.00016438,2]
[404185702,1769912646492,-500.0,0.00016438,2]
[404185703,1769912646520,-500.0,0.00016438,2]
[404185704,1769912646548,-500.0,0.00016438,2]
[404185705,1769912646575,-500.0,0.00016438,2]
[404185706,1769912646604,-500.0,0.00016438,2]
[404185707,1769912646631,-500.0,0.00016438,2]
[404185708,1769912646660,-500.0,0.00016438,2]
[404185709,1769912646691,-500.0,0.00016438,2]
[404185710,1769912646717,-500.0,0.00016438,2]
[404185711,1769912646742,-500.0,0.00016438,2]
[404185712,1769912646770,-500.0,0.00016438,2]
[404185713,1769912646799,-370.97733678,0.00016438,2]
[404185714,1769912646827,-500.0,0.00016438,2]
[404185715,1769912646855,-500.0,0.00016438,2]
[404185716,1769912646884,-500.0,0.00016438,2]
[404185717,1769912646916,-500.0,0.00016438,2]
[404185718,1769912646945,-500.0,0.00016438,2]
[404185719,1769912646973,-500.0,0.00016438,2]
[404185720,1769912647001,-500.0,0.00016438,2]
[404185721,1769912647029,-500.0,0.00016438,2]
[404185722,1769912647055,-500.0,0.00016438,2]
[404185723,1769912647082,-500.0,0.00016438,2]
[404185724,1769912647108,-500.0,0.00016438,2]
[404185725,1769912647139,-500.0,0.00016438,2]
[404185726,1769912647167,-500.0,0.00016438,2]
[404185727,1769912647195,-500.0,0.00016438,2]
[404185728,1769912647224,-500.0,0.00016438,2]
[404185729,1769912647252,-500.0,0.00016438,2]
[404185730,1769912647280,-500.0,0.00016438,2]
[404185731,1769912647306,-500.0,0.00016438,2]
[404185732,1769912647332,-500.0,0.00016438,2]
[404185733,1769912647363,-500.0,0.00016438,2]
[404185734,1769912647390,-500.0,0.00016438,2]
[404185735,1769912647426,-500.0,0.00016438,2]
[404185736,1769912647460,-500.0,0.00016438,2]
[404185737,1769912647493,-500.0,0.00016438,2]
[404185738,1769912647522,-500.0,0.00016438,2]
[404185739,1769912647554,-500.0,0.00016438,2]
[404185740,1769912647581,-500.0,0.00016438,2]
[404185741,1769912647621,-500.0,0.00016438,2]
[404185742,1769912647647,-500.0,0.00016438,2]
[404185743,1769912647675,-500.0,0.00016438,2]
[404185744,1769912647703,-500.0,0.00016438,2]
[404185745,1769912647737,-500.0,0.00016438,2]
[404185746,1769912647770,-500.0,0.00016438,2]
[404185747,1769912647802,-500.0,0.00016438,2]
[404185748,1769912647842,-500.0,0.00016438,2]
[404185749,1769912647868,-500.0,0.00016438,2]
[404185750,1769912647894,-500.0,0.00016438,2]
[404185751,1769912647922,-500.0,0.00016438,2]
[404185752,1769912647952,-600.0,0.00016438,2]
[404185753,1769912647985,-500.0,0.00016438,2]
[404185754,1769912648012,-500.0,0.00016438,2]
[404185755,1769912648039,-500.0,0.00016438,2]
[404185756,1769912648067,-500.0,0.00016438,2]
[404185757,1769912648095,-500.0,0.00016438,2]
[404185758,1769912648123,-560.05082533,0.00016438,2]
[404185759,1769912648151,-560.05082533,0.00016438,2]
[404185760,1769912648179,-560.05082533,0.00016438,2]
[404185761,1769912648207,-560.05082533,0.00016438,2]
[404185762,1769912648241,-560.05082533,0.00016438,2]
[404185763,1769912648267,-560.05082533,0.00016438,2]
[404185764,1769912648295,-1068.4,0.00016438,2]
[404185765,1769912648322,-560.05082533,0.00016438,2]
[404185766,1769912648357,-560.05082533,0.00016438,2]
[404185767,1769912648386,-560.05082533,0.00016438,2]
[404185768,1769912648411,-801.64560442,0.00016438,2]
[404185769,1769912648439,-166.66,0.00016673,2]
[404185770,1769912648469,-1068.4,0.00016712,2]
[404185771,1769912648495,-165.48,0.00016712,2]
[404185772,1769912648525,-16739.6154473,0.00016754,2]
[404185773,1769912648552,-433.0,0.00016891,2]
[404185774,1769912648580,-1000.0,0.00016921,2]
[404185775,1769912648607,-1000.0,0.00016921,2]
[404185776,1769912648633,-373.04412822,0.00016921,2]
[404185777,1769912648661,-524.41438372,0.00016921,2]
[404185778,1769912648690,-1000.0,0.00016921,2]
[404185779,1769912648718,-1000.0,0.00016921,2]
[404185780,1769912648744,-1000.0,0.00016921,2]
[404185781,1769912648777,-1000.0,0.00016921,2]
[404185782,1769912648804,-3493.602,0.00016964,2]
[404185783,1769912648831,-1338.801,0.00016964,2]
[404185784,1769912648858,-618.059,0.00016964,2]
[404185785,1769912648884,-1410.0,0.00016964,2]
[404185786,1769912648914,-6577.0,0.00016964,2]
[404185787,1769912648945,-573.187,0.00016964,2]
[404185788,1769912648972,-1215.058,0.00016964,2]
[404185789,1769912649002,-1068.4,0.00016986,2]
[404185790,1769912649033,-166.66,0.00016997,2]
[404185791,1769912649064,-1000.0,0.00017002,2]
[404185792,1769912649091,-6396.35970103,0.00017136,2]
[404185793,1769912649118,-16739.6154473,0.00017136,2]
[404185794,1769912649145,-570.86,0.00017205,2]
[404185795,1769912649593,-1068.4,0.0001726,2]
[404185796,1769912649624,-587.0,0.00017342,2]
[404185797,1769912649648,-838.0,0.0001736,2]
[404185798,1769912649671,-1500.0,0.00017468,2]
[404185799,1769912649694,-1500.0,0.00017468,2]
[404185800,1769912649718,-1500.0,0.00017468,2]
[404185801,1769912649742,-1500.0,0.00017468,2]
[404185802,1769912649766,-613.64404102,0.00017468,2]
[404185803,1769912649790,-1500.0,0.00017468,2]
[404185804,1769912649815,-155.0,0.00017474,2]
[404185805,1769912649840,-6396.35970103,0.00017518,2]
[404185806,1769912649865,-16739.6154473,0.00017518,2]
[404185807,1769912649890,-1068.4,0.00017534,2]
[404185808,1769912649919,-1000.0,0.00017534,2]
[404185809,1769912649945,-1661.95603094,0.0001755,2]
[404185810,1769912649973,-732.0,0.00017561,2]
[404185811,1769912650001,-7100.0,0.000176,6]
[404185812,1769912650027,-732.0,0.00017629,2]
[404185813,1769912650051,-2151.76765457,0.00017667,2]
[404185814,1769912650074,-3218.91572247,0.00017667,2]
[404185815,1769912650098,-4355.307,0.00017667,2]
[404185816,1769912650121,-838.0,0.0001768,2]
[404185817,1769912650149,-838.0,0.0001768,2]
[404185818,1769912650171,-833.0,0.0001768,2]
[404185819,1769912650195,-150.0,0.00017699,2]
[404185820,1769912650219,-150.0,0.00017699,2]
[404185821,1769912650242,-500.0,0.00017699,2]
[404185822,1769912650264,-150.0,0.00017699,2]
[404185823,1769912650286,-150.0,0.00017699,2]
[404185824,1769912650310,-152.80464485,0.00017699,2]
[404185825,1769912650339,-153.09897616,0.00017699,2]
[404185826,1769912650366,-150.0,0.00017699,2]
[404185827,1769912650389,-150.0,0.00017699,2]
[404185828,1769912650411,-150.0,0.00017699,2]
[404185829,1769912650435,-150.0,0.00017699,2]
[404185830,1769912650459,-8900.0,0.000177,6]
[404185831,1769912650482,-256.0991865,0.00017754,2]
[404185832,1769912650504,-150.0,0.00017754,2]
[404185833,1769912650526,-500.0,0.00017754,2]
[404185834,1769912650550,-150.0,0.00017754,2]
[404185835,1769912650577,-150.0,0.00017754,2]
[404185836,1769912650601,-150.0,0.00017754,2]
[404185837,1769912650627,-150.0,0.00017754,2]
[404185838,1769912650654,-1700.0,0.000178,6]
[404185839,1769912650678,-1068.4,0.00017808,2]
[404185840,1769912650700,-1000.0,0.00017808,2]
[404185841,1769912650723,-150.0,0.00017809,2]
[404185842,1769912650746,-254.0,0.00017809,2]
[404185843,1769912650768,-200.0,0.00017809,2]
[404185844,1769912650794,-200.0,0.00017809,2]
[404185845,1769912650818,-150.0,0.00017809,2]
[404185846,1769912650842,-732.0,0.00017813,2]
[404185847,1769912650866,-732.0,0.00017846,2]
[404185848,1769912650888,-150.0,0.00017863,2]
[404185849,1769912650911,-1700.0,0.000179,6]
[404185850,1769912650934,-318.19464801,0.000179,2]
[404185851,1769912650960,-10000.0,0.000179,2]
[404185852,1769912650986,-6396.35970103,0.000179,2]
[404185853,1769912651010,-16739.6154473,0.000179,2]
[404185854,1769912651035,-158.95836824,0.000179,2]
[404185855,1769912651060,-150.0,0.00017918,2]
[404185856,1769912651085,-732.0,0.00017946,2]
[404185857,1769912651109,-732.0,0.00017958,2]
[404185858,1769912651132,-500.50681655,0.00017973,2]
[404185859,1769912651154,-313.89026298,0.00017973,2]
[404185860,1769912651176,-509.3365225,0.00017973,2]
[404185861,1769912651198,-501.03335169,0.00017973,2]
[404185862,1769912651220,-200.0,0.00017973,2]
[404185863,1769912651255,-150.0,0.00017973,2]
[404185864,1769912651279,-150.0,0.00017973,2]
[404185865,1769912651304,-300.0,0.00017995,2]
[404185866,1769912651327,-20859.6699138,0.00017996,2]
[404185867,1769912651352,-199603.8622785,0.00017996,2]
[404185868,1769912651375,-151.0,0.00017996,2]
[404185869,1769912651398,-151.0,0.00017996,2]
[404185870,1769912651420,-151.0,0.00017996,2]
[404185871,1769912651513,-151.0,0.00017996,2]
[404185872,1769912651538,-151.0,0.00017996,2]
[404185873,1769912651561,-151.0,0.00017996,2]
[404185874,1769912651585,-231.69335,0.00017996,2]
[404185875,1769912651607,-231.69335,0.00017996,2]
[404185876,1769912651634,-213.085893,0.00017996,2]
[404185877,1769912651657,-231.69335,0.00017996,2]
[404185878,1769912651680,-151.0,0.00017996,2]
[404185879,1769912651702,-213.085893,0.00017996,2]
[404185880,1769912651726,-231.69335,0.00017996,2]
[404185881,1769912651749,-151.0,0.00017996,2]
[404185882,1769912651772,-213.085893,0.00017996,2]
[404185883,1769912651796,-151.0,0.00017996,2]
[404185884,1769912651819,-294.915176,0.00017996,2]
[404185885,1769912651847,-253.8427475,0.00017996,2]
[404185886,1769912651871,-25194.220772,0.00017996,2]
[404185887,1769912651893,-1000.0,0.00017999,2]
[404185888,1769912651917,-732.0,0.00017999,2]
[404185889,1769912651943,-119820.65711218,0.00018,2]
[404185890,1769912652102,322.6107,0.00043528,30]
[404185891,1769912652178,520.0,0.00043528,30]
[404185892,1769912652242,1000.0,0.00043528,30]
[404185893,1769912652307,539.24,0.00043528,30]
[404185894,1769912652461,2123.39734685,0.00043528,30]
[404185895,1769912652560,151.0,0.00043528,30]
[404185896,1769912652653,151.0,0.00043528,30]
[404185897,1769912652751,854.2589148,0.00043528,30]
[404185898,1769912652828,326.39363589,0.00043528,30]
[404185899,1769912652891,531.07755986,0.00043528,30]
[404185900,1769912652959,3000.0,0.00043528,30]
[404185901,1769912653020,578.20924308,0.00043528,30]
[404185902,1769912654831,1000.0,0.00043528,30]
[404185903,1769912655011,1000.0,0.00043528,30]
[404185904,1769912655442,1000.0,0.00043528,30]
[404185905,1769912658025,151.0,0.00043528,30]
[404185906,1769912658687,156.587,0.00043528,30]
[404185907,1769912659289,620.0,0.00043528,30]
[404185908,1769912659362,162.380719,0.00043528,30]
[404185909,1769912659905,168.3888056,0.00043528,30]
[404185910,1769912660522,174.61919141,0.00043528,30]
[404185911,1769912661150,181.08010149,0.00043528,30]
[404185912,1769912661800,187.78006525,0.00043528,30]
[404185913,1769912662402,194.72792766,0.00043528,30]
[404185914,1769912662995,201.93286099,0.00043528,30]
[404185915,1769912663641,209.40437684,0.00043528,30]
[404185916,1769912664233,217.15233878,0.00043528,30]
[404185917,1769912664871,225.18697532,0.00043528,30]
[404185918,1769912665489,233.51889341,0.00043528,30]
[404185919,1769912666106,242.15909246,0.00043528,30]
[404185920,1769912666715,251.11897888,0.00043528,30]
[404185921,1769912667317,260.4103811,0.00043528,30]
[404185922,1769912667969,270.0455652,0.00043528,30]
[404185923,1769912668590,280.03725112,0.00043528,30]
[404185924,1769912669213,290.39862941,0.00043528,30]
[404185925,1769912669837,290.39862941,0.00043528,30]
[404185945,1769912708589,322.6107,0.00043529,30]
[404185946,1769912708712,942.30748125,0.00043529,30]
[404185947,1769912711254,1000.0,0.00043529,30]
[404185948,1769912711404,248.52246271,0.00043529,30]
[404185949,1769912711886,1000.0,0.00043529,30]
[404185950,1769912712512,1000.0,0.00043529,30]
[404185951,1769912714770,2500.0,0.00043529,30]
[404185952,1769912718375,854.2589148,0.00043529,30]
[404185953,1769912718676,383.0153107,0.00043529,30]
[404185954,1769912721157,817.69560815,0.00043529,30]
[404185955,1769912754193,938.52599535,0.00043529,120]
[404185956,1769912777458,159.36231541,0.00043529,30]
[404185957,1769912782209,500.0,0.00043529,120]
[404185959,1769912853805,154.56750958,0.00043529,120]
[404185960,1769912879984,2000.0,0.00021,60]
[404185963,1769912897708,1453.2281052,0.00043529,120]
[404185967,1769912911088,4528.95730958,0.00043529,30]
[404185970,1769912917063,4110.92301686,0.00043529,120]
[404185978,1769913031416,-2065.66,0.00012986,2]
[404185980,1769913031425,-592.79024447,0.00014461,2]
[404185982,1769913031434,-610.89140887,0.00014545,2]
[404185984,1769913031443,-398.76970691,0.00014561,2]
[404185987,1769913031455,-801.23029309,0.00014561,2]
[404185988,1769913031467,-300.0,0.00014561,2]
[404185989,1769913031477,-300.0,0.00014561,2]
[404185990,1769913031486,-436.2758478,0.00014562,2]
[404185991,1769913031495,-500.0,0.00014562,2]
[404185992,1769913031504,-505.26310101,0.00014562,2]
[404185993,1769913031513,-500.0,0.00014562,2]
[404185994,1769913031522,-508.01928658,0.00014562,2]
[404185995,1769913031532,-500.0,0.00014562,2]
[404185996,1769913031541,-500.0,0.00014562,2]
[404185997,1769913031551,-403.8414253,0.00014562,2]
[404185998,1769913031560,-508.0546101,0.00014562,2]
[404185999,1769913031570,-250.0,0.00015,2]
[404186000,1769913031580,-168.19,0.00015862,2]
[404186001,1769913031590,-300.0,0.00015999,2]
[404186002,1769913031599,-17017.74197693,0.00016,4]
[404186003,1769913031611,-6832.10080246,0.00016,4]
[404186011,1769913034322,-42.41749804,0.00016,4]
[404186012,1769913034331,-255.365707,0.00016,2]
[404186013,1769913034341,-1680.0,0.00016017,2]
[404186014,1769913034350,-151.0,0.00016146,2]
[404186015,1769913034360,-151.0,0.00016146,2]
[404186016,1769913034369,-1916.9692677,0.000162,5]
[404186017,1769913034382,-566.5394789,0.000162,5]
[404186018,1769913034394,-520.49846645,0.000162,5]
[404186019,1769913034406,-2075.93354033,0.000162,5]
[404186020,1769913034416,-1217.37507571,0.00016212,2]
[404186021,1769913034427,-3260.07671502,0.00016212,2]
[404186022,1769913034438,-2162.64834113,0.00016272,2]
[404186023,1769913034452,-454.69711136,0.00016272,2]
[404186024,1769913034463,-181.56304751,0.00016272,2]
[404186025,1769913034472,-2269.38066079,0.00016272,2]
[404186026,1769913034483,-290.88128392,0.00016272,2]
[404186029,1769913037519,-604.73805529,0.00016272,2]
[404186030,1769913037528,-45041.94830295,0.00016273,2]
[404186031,1769913037577,-1272.01358721,0.00016273,2]
[404186032,1769913037588,-1000.0,0.00016273,2]
[404186033,1769913037632,-354.0347142,0.00016273,2]
[404186037,1769913039542,-306.19545673,0.00016273,2]
[404186039,1769913039651,-414736.99033746,0.00016273,2]
[404186040,1769913039817,-5288.5435198,0.00016273,2]
[404186041,1769913039977,-3210.48685374,0.00016273,2]
[404186045,1769913043307,-468.51570883,0.00016273,2]
[404186055,1769913045688,-2479.92067609,0.00016273,2]
[404186056,1769913045701,-2929.86186262,0.00016273,2]
[404186057,1769913045744,-436.82000042,0.00016273,2]